Cogmind - Beta 14 @@@ ROGUE MODE // 2024.11.22 @ 23:32:08 Player: WazdakkaGutsmek Result: Destroyed by as-73555 with Assembled Heavy Rifle Performance ------------- Evolutions (0) 0 Regions Visited (3) 600 Robots Destroyed (14) 70 Value Destroyed (338) 338 Prototype IDs (34) 680 Alien Tech Used (0) 0 Bonus (300) 300 TOTAL SCORE: 1988 Bonus ------- Aligned with FarCom 300 Cogmind --------- Core Integrity 0/250 Matter 247/300 Energy 265/265 System Corruption 2% Temperature Cool (0) Movement Treading (160) Location -10/Exiles Parts ------- > --- POWER (1) -------- Improved Ion Engine > --- PROPULSION (2) --- Light Treads Light Treads (fused) > --- UTILITY (2) ------ Large Storage Unit > --- WEAPON (2) ------- Light Assault Rifle Datajack > --- INVENTORY (15) --- Improved Ion Engine Improved Ion Engine Compact Wheel Lightpack 2.0 YOLO Cannon Light Assault Rifle Grenade Launcher Peak State ------------ > --- POWER ------------ Improved Ion Engine > --- PROPULSION ------- Light Treads Light Treads > --- UTILITY ---------- Large Storage Unit > --- WEAPON ----------- Light Assault Rifle Datajack > --- INVENTORY -------- Improved Ion Engine Improved Ion Engine Compact Wheel Lightpack 2.0 YOLO Cannon Light Assault Rifle Grenade Launcher [Rating: 12] Favorites ----------- Power Improved Ion Engine Engine Improved Ion Engine Propulsion Light Treads Treads Light Treads Leg Aluminum Leg Utility Large Storage Unit Storage Large Storage Unit Weapon Light Assault Rifle Energy Gun Medium Laser Ballistic Gun Light Assault Rifle Special Melee Weapon Datajack Build | -11 -10 -10 -10 ------- Run | Yrd Mat Min Exi Slots Evolved . | . . . . Power . | . . . . Propulsion . | . . . . Utility . | . . . . Weapon . | . . . . Parts Attached 9 | . 8 . 1 Power 3 | . 3 . . Engine 3 | . 3 . . Core . | . . . . Reactor . | . . . . Propulsion 2 | . 2 . . Treads 2 | . 2 . . Leg . | . . . . Wheel . | . . . . Hover . | . . . . Flight . | . . . . Utility 2 | . 2 . . Device . | . . . . Storage 2 | . 2 . . Processor . | . . . . Hackware . | . . . . Protection . | . . . . Artifact . | . . . . Weapon 2 | . 1 . 1 Energy Gun . | . . . . Energy Cannon . | . . . . Ballistic Gun 1 | . 1 . . Ballistic Cannon . | . . . . Launcher . | . . . . Special Weapon . | . . . . Impact Weapon . | . . . . Slashing Weapon . | . . . . Piercing Weapon . | . . . . Special Melee Weapon 1 | . . . 1 Unidentified Prototypes . | . . . . Parts Lost 4 | . 4 . . Power 2 | . 2 . . Propulsion 2 | . 2 . . Utility . | . . . . Weapon . | . . . . Highest Loss Streak 2 | . 2 . . To Critical Strikes . | . . . . Average Slot Usage (%) 79 | . 78 85 85 Engine 13 | . 13 14 14 Treads 15 | . 10 28 28 Leg 8 | . 10 . . Storage 14 | . 14 14 14 Energy Gun 8 | . 11 . . Ballistic Gun 17 | . 16 28 16 Special Melee Weapon 2 | . . . 11 Peak Build Rating 12 | 6 8 7 12 Average Rating 6 | 6 5 7 8 On Entrance 6 | 6 6 7 7 Naked Turns . | . . . . Heaviest Build 30 | 11 30 29 29 Greatest Support 40 | 20 40 40 40 Greatest Overweight (x) 2 | . 2 . . Average Overweight (x) . | . . . . Largest Inventory Capacity 15 | 8 15 15 15 Average Capacity 13 | 8 13 15 15 Most Carried 10 | 5 8 5 10 Average Carried 6 | 5 6 5 6 Final Capacity 15 | 8 15 15 15 Final Carried 10 | 5 5 5 10 Class Distribution -------------------- 100% | Mutant Dominant Class ---------------- Mutant | -10/Materials Mutant | -10/Mines Mutant | -10/Exiles Resources | -11 -10 -10 -10 ----------- Run | Yrd Mat Min Exi Matter Collected 337 | 200 137 . . Remotely . | . . . . Salvage Created 520 | . 520 . . Parts 31 | . 31 . . Haulers Intercepted 1 | . 1 . . Recyclers Shooed . | . . . . Parts Field Recycled . | . . . . Retrieved Matter . | . . . . Parts Self-Destructed . | . . . . Prevented . | . . . . Kills | -11 -10 -10 -10 ------- Run | Yrd Mat Min Exi Combat Hostiles Destroyed 10 | . 10 . . Guns 10 | . 10 . . Classes Destroyed 6 | . 6 . . Tunneler 1 | . 1 . . Hauler 1 | . 1 . . Recycler 1 | . 1 . . Watcher 1 | . 1 . . Swarmer 3 | . 3 . . Grunt 7 | . 7 . . Best Kill Streak 4 | . 4 . . Combat Bots Only 3 | . 3 . . Max Kills in Single Turn 1 | . 1 . . Gunslinging . | . . . . Exploded . | . . . . Melee . | . . . . Uniques/NPCs Destroyed . | . . . . Combat | -11 -10 -10 -10 -------- Run | Yrd Mat Min Exi Hostile Shots Fired 80 | . 64 . 16 Missed 23 | . 18 . 5 Damage Taken 905 | . 567 . 338 Core 251 | . 166 . 85 Absorbed by Shields . | . . . . Core Remaining (%) 100 | 100 . . . Volleys Fired 62 | . 62 . . Largest 2 | . 2 . . Hottest 70 | . 70 . . Shots Fired 125 | . 124 . 1 Gun 125 | . 124 . 1 Cannon . | . . . . Launcher . | . . . . Special . | . . . . Kinetic 63 | . 62 . 1 Thermal 62 | . 62 . . Explosive . | . . . . Electromagnetic . | . . . . Robot Hit Streak 14 | . 14 . . Robot Miss Streak 3 | . 3 . 1 Penetration Max . | . . . . Secondary Targets 2 | . 2 . . Max Gunslinging Chain 1 | . 1 . . Shots Hit Robots 92 | . 88 . 4 Core Hits 32 | . 32 . . Critical Kills . | . . . . Critical Parts Destroyed 1 | . 1 . . Critical Strikes 3 | . 3 . . Burn 2 | . 2 . . Destroy 1 | . 1 . . Melee Attacks 4 | . . . 4 Impact . | . . . . Slashing . | . . . . Piercing . | . . . . Sneak Attacks 4 | . . . 4 Combat Hostiles . | . . . . Follow-up Attacks . | . . . . Damage Inflicted 935 | . 935 . . Guns 925 | . 925 . . Cannons . | . . . . Explosions . | . . . . Melee . | . . . . Ramming 10 | . 10 . . Kinetic 352 | . 352 . . Thermal 573 | . 573 . . Explosive . | . . . . Electromagnetic . | . . . . Impact . | . . . . Slashing . | . . . . Piercing . | . . . . Highest Corruption 2 | . 2 2 2 Average Corruption 1 | . 1 2 2 Corruption Purged . | . . . . Corruption Blocked . | . . . . Effects 19 | . 14 . 5 Message Errors 3 | . 2 . 1 Matter Fused 7 | . 5 . 2 Heat Flow Errors 3 | . 2 . 1 Parts Fused 1 | . 1 . . Data Loss (major) 1 | . 1 . . Misfires 2 | . 1 . 1 Alerts 1 | . 1 . . Weapon Failures 1 | . 1 . . Overload Shots . | . . . . Overflow Damage . | . . . . Projectiles . | . . . . Explosions . | . . . . Melee . | . . . . Knockbacks . | . . . . Impact . | . . . . Kinetic . | . . . . Secondary . | . . . . Self-Inflicted Damage . | . . . . Shots . | . . . . Rammed . | . . . . Targets Rammed 2 | . 2 . . Kicked 2 | . 2 . . Crushed . | . . . . Highest Temperature 271 | . 271 . 112 Average Temperature 72 | . 73 . 51 Received Heat Transfer 345 | . 345 . . Siege Activations . | . . . . Robots Corrupted . | . . . . Combat Hostiles . | . . . . Parts Fried . | . . . . Impact Corruptions . | . . . . Robots Melted . | . . . . Combat Hostiles . | . . . . Parts Melted 3 | . 3 . . Heat Transferred 1813 | . 1813 . . Parts Sabotaged . | . . . . Parts Stolen . | . . . . Parts Stripped . | . . . . Power Chain Reactions . | . . . . Alert | -11 -10 -10 -10 ------- Run | Yrd Mat Min Exi Peak Influence 207 | . 207 36 . Initial 36 | . . 36 . Average 76 | . 78 36 . Maximum Alert Level 1 | . 1 . . Low Security (%) 89 | 100 88 100 . Level 1 10 | . 11 . . Level 2 . | . . . . Level 3 . | . . . . Level 4 . | . . . . Level 5 . | . . . . High Security . | . . . . Max Security . | . . . . Squads Dispatched 1 | . 1 . . Investigation . | . . . . Extermination . | . . . . Reinforcement 1 | . 1 . . Assault . | . . . . Garrison . | . . . . Intercept . | . . . . Searches Triggered . | . . . . Construction Impeded . | . . . . Haulers Reinforced . | . . . . Active Scanning Responses . | . . . . Cargo Convoy Interrupts . | . . . . Stealth | -11 -10 -10 -10 --------- Run | Yrd Mat Min Exi Distress Signals 3 | . 3 . . Communications Jammed . | . . . . Distress Signals . | . . . . Times Spotted 24 | . 23 . 1 Peak Tracking Total 11 | . 4 . 11 Tactical Retreats 3 | . 2 . 1 Traps | -11 -10 -10 -10 ------- Run | Yrd Mat Min Exi Traps Triggered 2 | . 2 . . Indirectly . | . . . . Trap Hack Attempts . | . . . . Triggered . | . . . . Disarmed . | . . . . Reprogrammed . | . . . . Reused . | . . . . Traps Extracted . | . . . . Installed . | . . . . Triggered . | . . . . Machines | -11 -10 -10 -10 ---------- Run | Yrd Mat Min Exi Machines Disabled . | . . . . Max in Single Turn . | . . . . Machines Repaired . | . . . . Machines Dismantled . | . . . . Machines Sabotaged . | . . . . Overloaded Fab Kills . | . . . . Hacking | -11 -10 -10 -10 --------- Run | Yrd Mat Min Exi Machines Accessed 6 | . 5 . 1 Terminals 5 | . 5 . . Fabricators . | . . . . Repair Stations . | . . . . Recycling Units . | . . . . Scanalyzers . | . . . . Garrison Access . | . . . . Total Hacks 12 | . 11 . 1 Successful 8 | . 7 . 1 Failed 4 | . 4 . . Catastrophic . | . . . . Database Lockouts . | . . . . Manual 12 | . 11 . 1 Terminals 11 | . 11 . . Fabricators . | . . . . Repair Stations . | . . . . Recycling Units . | . . . . Scanalyzers . | . . . . Garrison Access . | . . . . Terminal Hacks 3 | . 2 . 1 Robot Analysis 1 | . 1 . . Terminal Index 1 | . 1 . . Derelict Proto ID Bank 1 | . . . 1 Fabricator Hacks . | . . . . Repair Station Hacks . | . . . . Recycling Unit Hacks . | . . . . Scanalyzer . | . . . . Garrison Access Hacks . | . . . . Unauthorized Hacks 5 | . 5 . . Terminals 5 | . 5 . . Skim 5 | . 5 . . Fabricators . | . . . . Repair Stations . | . . . . Recycling Units . | . . . . Scanalyzers . | . . . . Garrison Access . | . . . . Data Cores Recovered . | . . . . Used . | . . . . Hacking Detections 3 | . 3 . . Full Trace Events . | . . . . Feedback Events . | . . . . Feedback Blocked . | . . . . Robot Schematics Acquired . | . . . . Robots Built . | . . . . Authchips . | . . . . Time . | . . . . Total Robot Build Rating . | . . . . Part Schematics Acquired . | . . . . Parts Built . | . . . . Authchips . | . . . . Time . | . . . . Total Part Build Rating . | . . . . Parts Repaired . | . . . . Time . | . . . . Parts Recycled . | . . . . Recycled Matter . | . . . . Retrieved Matter . | . . . . Retrieved Components . | . . . . Parts Scanalyzed . | . . . . Part Schematics Acquired . | . . . . Parts Damaged . | . . . . Bothacking | -11 -10 -10 -10 ------------ Run | Yrd Mat Min Exi Used RIF Installer . | . . . . Robots Hacked 3 | . . . 3 Non-combat 2 | . . . 2 Combat 1 | . . . 1 Robot Hacks Applied 3 | . . . 3 parse_system 3 | . . . 3 Relay Couplers Released . | . . . . Fabnet Peak Effective % . | . . . . Robots Rewired . | . . . . Allies Hacked . | . . . . Hacks Repelled . | . . . . Allies | -11 -10 -10 -10 -------- Run | Yrd Mat Min Exi Total Allies 1 | . . 1 . Largest Group 1 | . . 1 1 Highest-Rated Group 31 | . . 31 31 Highest-Rated Ally 31 | . . 31 31 Total Orders . | . . . . Ally Attacks . | . . . . Total Damage . | . . . . Kills . | . . . . Allies Corrupted . | . . . . Allies Melted . | . . . . Intel | -11 -10 -10 -10 ------- Run | Yrd Mat Min Exi Robot Analysis Total 1 | . 1 . . Derelict Logs Recovered . | . . . . Drone Launches . | . . . . Drone Recoveries . | . . . . Exploration | -11 -10 -10 -10 ------------- Run | Yrd Mat Min Exi Turns Passed 1850 | 1 1370 52 427 Spaces Moved 861 | 1 571 30 259 Core . | . . . . Treads 471 | . 182 30 259 Legs 390 | 1 389 . . Wheels . | . . . . Hover . | . . . . Flight . | . . . . Fastest Speed 120 | 120 120 160 160 Average Speed 168 | 120 172 160 160 Slowest Speed 260 | 120 260 160 160 Overloaded Moves . | . . . . Propulsion Burnouts . | . . . . Robots Hopped . | . . . . Cave-ins Triggered . | . . . . Exploration Rate (%) 38 | 2 89 12 51 Regions Visited 3 Branch Regions 2 Pre-discovered Areas 1 | . 1 . . Known Exits Taken . | . . . . Unknown Exits Taken 3 | 1 1 1 . Scrap Searched . | . . . . Spaces Dug . | . . . . Terrain Destroyed . | . . . . Melee . | . . . . Projectile . | . . . . AOE . | . . . . Terrain Rammed . | . . . . Walls Destroyed . | . . . . Machines Disabled . | . . . . Actions | -11 -10 -10 -10 --------- Run | Yrd Mat Min Exi Total 1145 | 1 841 34 269 Wait 196 | . 188 5 3 Move 858 | . 570 29 259 Hop . | . . . . Pick Up 6 | . 4 . 2 Fast Attach 4 | . 4 . . Attach 3 | . 3 . . Detach 2 | . 2 . . Swap 2 | . 1 . 1 Drop 6 | 1 5 . . Fire 62 | . 62 . . Melee 4 | . . . 4 Ram . | . . . . Kick 2 | . 2 . . Crush . | . . . . Escape Stasis . | . . . . Rewire . | . . . . Trap . | . . . . Miscellaneous . | . . . . Route ------- -11/Scrapyard -10/Materials (discovered 4 exits: *Mat x3 / [*Min]) -10/Mines (discovered 3 exits: Mat / *Exi / Sub) -10/Exiles History --------- Turn | Location | Event 2 | -11/Scrapyard | Discovered new exit (range 0) 2 | -11/Scrapyard | Entered Materials 263 | -10/Materials | Discovered new exit (range 14) 316 | -10/Materials | Build established: Mutant 821 | -10/Materials | Core integrity fell below 50% 912 | -10/Materials | Discovered new exit (range 15) 1146 | -10/Materials | Discovered new exit (range 12) 1194 | -10/Materials | Learned Storage interactive machine intel 1230 | -10/Materials | Identified exit to Materials 1258 | -10/Materials | Learned location of 2 exits from Subcaves 1276 | -10/Materials | Learned Storage security intel 1283 | -10/Materials | Loaded intel: 26 trap records 1284 | -10/Materials | Learned location of 2 exits from Subcaves 1304 | -10/Materials | Learned 2 Mines zone layouts 1327 | -10/Materials | Learned Storage emergency access door positions 1372 | -10/Materials | Entered Mines 1374 | -10/Mines | Identified exit to Subcaves 1375 | -10/Mines | Received a Mining Laser from a helpful Derelict 1415 | -10/Mines | Deemed a non-threat by the Exiles lab entrance 1416 | -10/Mines | Discovered new exit (range 5) 1424 | -10/Mines | Entered Exiles 1424 | -10/Exiles | Accompanied by 1 ally 1464 | -10/Exiles | Met 8R-AWN 1493 | -10/Exiles | Met EX-HEX 1605 | -10/Exiles | Met EX-BIN 1624 | -10/Exiles | Aligned with FarCom system 1625 | -10/Exiles | Given EX-Vault access code 1664 | -10/Exiles | Opened EX-Vault 1673 | -10/Exiles | Found YOLO Cannon 1706 | -10/Exiles | Warned to stay clear of 0b10 Research branches 1742 | -10/Exiles | Found Lightpack 2.0 1827 | -10/Exiles | Met EX-DEC 1832 | -10/Exiles | Attacked by the Exiles 1842 | -10/Exiles | Core integrity fell below 20% 1851 | -10/Exiles | Destroyed by as-73555 with Assembled Heavy Rifle Last Messages --------------- 01742_ Acquired Lightpack 2.0. EX-BIN: And don't even think about spreading that code around. We're gonna change it right after you leave. Most certainly not to something like 1234 which I did last time as a little joke and some thief managed to sneak in here and steal a few of HEX's prototypes. EX-DEC: Ah I see we have a visitor. One wrong move in here and I'll invert your atomic chain! 01829_ EX-DEC: "Oops, I hope HEX didn't hear that..." 01832_ System corrupted: FCS attempts to trigger Lgt. Assault Rifle. 01832_ System corrupted: Lgt. Assault Rifle misfires. 01832_ EXILES: Hostile robot within lab perimeter. Defensive protocols time, folks! 01843_ EX-BIN: "I just want to science!" 01846_ Machine disabled. Map ----- +----------------------------------------------------+ | ?????????????????????????????????????????"""""?# | | ????????????????????????????????????????"""" ## | | ???????????????????????????????????????#""X" | | ???????????????????????????????????????#" | | ???????????????????????????????????????#" ## | | ???????????????????????????????????????#""""""?# | | ????????????????????????????????????????#"###??# | | ???????????????????????????????????????????????# | | ???????????????????????????????????????????????# | | ??????????????????????????????????????????????## | | ??????????????????????????????????????????????#" | | ??????????????????????????????????????????????#" | | ??????????????????????????????????????????????#" | | ??????????????????????????????????????????????#" | | ?????????????????????????????????##???????????#" | | ????????????????????????????????? """????????#" | | ?????????????????????????????????" """#???????## | | ?????????????????????????????????" ?????????# | | ????????????????????????????????"" ?????????#" | | ???????????? ??????????????????"" "#????????#" | | ???????????? ???????????????? ""?????????#" | | ??????????? ???????????????" "?????????##" | | ????????????? ?????????????# #????????##"" | | ??????????????#"" ######???### ###?######"" | | ???????????????#" """#####X# #"###""""""" | | ???????????????#" @ % """""" " "" | | ?????????????????# % "" """ " | | ?????????????????## c " | | ??????????????????### a | | ????????????????????### | | ??????????????????????## | | ???????????????????????## | | ????????????????????????##" | | ?????????????????????????#""" """"" | | ?????????????????????????#" ###### | | ?????????????????????????"" ""##????# | | ?????????????????????????""" """##?????? | | ?????????????????????????"" """##??????? | | ??????????????????????????" ""#???????? | | ?????????????????????????" ##???????? | | ?????????????????????????"" ????????? | | ?????????????????????????? ????????? | | ??????????????????????????" ?????????? | | ????????????????????????????" ?????????? | | ?????????????????????????????? ?????????? | | ????????????????????????????????? ??????????? | | ??????????????????????????????????? ??????????? | | ?????????????????????????????????????????????????? | | ?????????????????????????????????????????????????? | | ?????????????????????????????????????????????????? | +----------------------------------------------------+ Best States ------------- Heat Dissipation 25 Energy Generation 12 Energy Capacity 265 Matter Stores 300 Matter Capacity 300 Sight Range 16 Terrain Scan Density 10 Evasion (%) 55 Recoil Reduction 2 Item Schematics ----------------- None Robot Schematics ------------------ None Fabricated ------------ Nothing Alien Tech Used ----------------- None Achievements -------------- None Challenges ------------ None Game ------ Seed BeamProcessingThrower Manual? 0 Play Time 00:11:49 Cumulative 134.7 hours Start 2024.11.22 @ 22:51:22 End 2024.11.22 @ 23:32:08 Sessions 5 Manual Loads 0 Difficulty Rogue Special Mode None Game No. 110 Rogue 91 Adventurer 16 Explorer 3 Win Type - Total 10 Types 8/0/1/1/0/0/0/0/0 Lore% 27 Gallery% 65 Achievement% 58 Wizard Run 0 Options --------- Layout 2 ASCII 0 Keyboard 0 Movement Numpad Keybinds 1 Fullscreen 1 Font 24/Terminus Map View 50x44 Zoom Use 0% Tactical HUD 1 Map Filters NONE Filters NONE Steam 1 RUN: 4e7ebbe1-f70e-4e47-b9da-5e7c2977c8e1